[Event "Titled Tuesday Blitz June 21 Early 2022"]
[White "Yaksin, Oleg"]
[Black "Dushyant Sharma"]
[WhiteFideId "24105880"]
[BlackFideId "25065130"]
[WhiteElo "2256"]
[BlackElo "2105"]
[Result "1-0"]
[Round "08"]
[TimeControl "180+1"]
[Date "2022.06.21"]
[WhiteClock "0:00:13"]
[BlackClock "0:00:18"]

1. d4 {[%clk 0:02:56]}  d5 {[%clk 0:02:56]} 2. c4 {[%clk 0:02:57]}  e6 {[%clk 0:02:57]} 3. Nf3 {[%clk 0:02:57]}  Nf6 {[%clk 0:02:56]} 4. g3 {[%clk 0:02:57]}  Be7 {[%clk 0:02:57]} 5. Bg2 {[%clk 0:02:57]}  O-O {[%clk 0:02:57]} 6. O-O {[%clk 0:02:58]}  dxc4 {[%clk 0:02:58]} 7. Qc2 {[%clk 0:02:58]}  c5 {[%clk 0:02:59]} 8. dxc5 {[%clk 0:02:53]}  Nc6 {[%clk 0:02:58]} 9. Qxc4 {[%clk 0:02:51]}  e5 {[%clk 0:02:57]} 10. Bg5 {[%clk 0:02:43]}  Be6 {[%clk 0:02:55]} 11. Qc1 {[%clk 0:02:42]}  e4 {[%clk 0:02:45]} 12. Nfd2 {[%clk 0:02:39]}  Nd4 {[%clk 0:02:45]} 13. Re1 {[%clk 0:02:34]}  Bg4 {[%clk 0:02:41]} 14. Nc3 {[%clk 0:02:28]}  Nd5 {[%clk 0:01:59]} 15. Bxe7 {[%clk 0:02:12]}  Nxc3 {[%clk 0:01:59]} 16. bxc3 {[%clk 0:02:09]}  Nxe2+ {[%clk 0:01:47]} 17. Rxe2 {[%clk 0:02:07]}  Qxe7 {[%clk 0:01:46]} 18. Rxe4 {[%clk 0:02:07]}  Qg5 {[%clk 0:01:46]} 19. Nf3 {[%clk 0:02:01]}  Qh5 {[%clk 0:01:44]} 20. Nd4 {[%clk 0:01:56]}  Rac8 {[%clk 0:01:41]} 21. Rb1 {[%clk 0:01:43]}  Rxc5 {[%clk 0:01:26]} 22. Rxb7 {[%clk 0:01:41]}  a5 {[%clk 0:01:26]} 23. Nb3 {[%clk 0:01:23]}  Rcc8 {[%clk 0:01:09]} 24. c4 {[%clk 0:01:17]}  h6 {[%clk 0:01:00]} 25. c5 {[%clk 0:01:14]}  Rfd8 {[%clk 0:01:00]} 26. Re1 {[%clk 0:00:48]}  a4 {[%clk 0:01:00]} 27. Nd2 {[%clk 0:00:38]}  Rxc5 {[%clk 0:00:59]} 28. Qb2 {[%clk 0:00:36]}  Be6 {[%clk 0:00:51]} 29. Rb8 {[%clk 0:00:30]}  Rcc8 {[%clk 0:00:44]} 30. Rxc8 {[%clk 0:00:29]}  Rxc8 {[%clk 0:00:44]} 31. Nf3 {[%clk 0:00:26]}  Qa5 {[%clk 0:00:35]} 32. a3 {[%clk 0:00:25]}  Rc3 {[%clk 0:00:32]} 33. Rd1 {[%clk 0:00:12]}  Rb3 {[%clk 0:00:29]} 34. Qc2 {[%clk 0:00:12]}  Rb8 {[%clk 0:00:28]} 35. Nd4 {[%clk 0:00:12]}  Bb3 {[%clk 0:00:25]} 36. Nxb3 {[%clk 0:00:11]}  axb3 {[%clk 0:00:26]} 37. Qb2 {[%clk 0:00:11]}  Qc5 {[%clk 0:00:22]} 38. Rb1 {[%clk 0:00:11]}  g6 {[%clk 0:00:19]} 39. Bf1 {[%clk 0:00:11]}  h5 {[%clk 0:00:19]} 40. h4 {[%clk 0:00:10]}  Rb6 {[%clk 0:00:18]} 41. a4 {[%clk 0:00:10]}  Qc2 {[%clk 0:00:18]} 42. Qxc2 {[%clk 0:00:09]}  bxc2 {[%clk 0:00:18]} 43. Rc1 {[%clk 0:00:10]}  Rb2 {[%clk 0:00:17]} 44. Kg2 {[%clk 0:00:09]}  Ra2 {[%clk 0:00:17]} 45. Bb5 {[%clk 0:00:09]}  Kg7 {[%clk 0:00:17]} 46. Bd3 {[%clk 0:00:09]}  Rxa4 {[%clk 0:00:17]} 47. Rxc2 {[%clk 0:00:09]}  Ra3 {[%clk 0:00:17]} 48. Be2 {[%clk 0:00:09]}  f6 {[%clk 0:00:16]} 49. Rc7+ {[%clk 0:00:10]}  Kh6 {[%clk 0:00:17]} 50. Bc4 {[%clk 0:00:10]}  g5 {[%clk 0:00:16]} 51. hxg5+ {[%clk 0:00:08]}  fxg5 {[%clk 0:00:15]} 52. Rc6+ {[%clk 0:00:09]}  Kg7 {[%clk 0:00:16]} 53. Be2 {[%clk 0:00:09]}  h4 {[%clk 0:00:14]} 54. gxh4 {[%clk 0:00:09]}  gxh4 {[%clk 0:00:15]} 55. Bg4 {[%clk 0:00:09]}  Ra4 {[%clk 0:00:14]} 56. f3 {[%clk 0:00:09]}  Ra1 {[%clk 0:00:14]} 57. Kh3 {[%clk 0:00:10]}  Rh1+ {[%clk 0:00:14]} 58. Kg2 {[%clk 0:00:10]}  Ra1 {[%clk 0:00:15]} 59. Rc5 {[%clk 0:00:11]}  Kg6 {[%clk 0:00:15]} 60. Rh5 {[%clk 0:00:11]}  Ra2+ {[%clk 0:00:15]} 61. Kh3 {[%clk 0:00:11]}  Rb2 {[%clk 0:00:13]} 62. Rxh4 {[%clk 0:00:11]}  Kg5 {[%clk 0:00:14]} 63. Rh5+ {[%clk 0:00:11]}  Kg6 {[%clk 0:00:15]} 64. Rf5 {[%clk 0:00:11]}  Rb1 {[%clk 0:00:14]} 65. Kg3 {[%clk 0:00:12]}  Rg1+ {[%clk 0:00:15]} 66. Kf4 {[%clk 0:00:12]}  Ra1 {[%clk 0:00:16]} 67. Rb5 {[%clk 0:00:13]}  Ra4+ {[%clk 0:00:16]} 68. Kg3 {[%clk 0:00:13]}  Kf6 {[%clk 0:00:16]} 69. f4 {[%clk 0:00:13]}  Ra1 {[%clk 0:00:17]} 70. Bf3 {[%clk 0:00:13]}  Rg1+ {[%clk 0:00:18]} 71. Kf2 {[%clk 0:00:13]}  Ra1 {[%clk 0:00:18]} 72. Be4 {[%clk 0:00:14]}  Ra2+ {[%clk 0:00:18]} 73. Kf3 {[%clk 0:00:14]}  Ra1 {[%clk 0:00:19]} 74. Rb6+ {[%clk 0:00:13]}  Kf7 {[%clk 0:00:19]} 75. Bd5+ {[%clk 0:00:13]}  Kg7 {[%clk 0:00:18]} 76. Ke4 {[%clk 0:00:13]}  Rb1 {[%clk 0:00:18]} 77. Rxb1 {[%clk 0:00:13]} 1-0


[Site "https://www.chess.com"]

[Event "Titled Tuesday Blitz June 21 Early 2022"]
[White "Yedidia, Daniel"]
[Black "Matinian, Nikita"]
[WhiteFideId "30905907"]
[BlackFideId "24129100"]
[WhiteElo "2603"]
[BlackElo "2422"]
[Result "1-0"]
[Round "08"]
[TimeControl "180+1"]
[Date "2022.06.21"]
[WhiteClock "0:00:13"]
[BlackClock "0:00:03"]

1. d4 {[%clk 0:03:00]}  Nf6 {[%clk 0:02:46]} 2. c4 {[%clk 0:03:01]}  g6 {[%clk 0:02:46]} 3. Nc3 {[%clk 0:03:01]}  Bg7 {[%clk 0:02:47]} 4. e4 {[%clk 0:03:01]}  d6 {[%clk 0:02:47]} 5. Nf3 {[%clk 0:03:01]}  O-O {[%clk 0:02:47]} 6. Be2 {[%clk 0:03:02]}  e5 {[%clk 0:02:46]} 7. Be3 {[%clk 0:03:02]}  Ng4 {[%clk 0:02:46]} 8. Bg5 {[%clk 0:03:02]}  f6 {[%clk 0:02:47]} 9. Bh4 {[%clk 0:03:03]}  Nc6 {[%clk 0:02:47]} 10. dxe5 {[%clk 0:03:01]}  dxe5 {[%clk 0:02:46]} 11. Qd5+ {[%clk 0:03:01]}  Kh8 {[%clk 0:02:46]} 12. O-O-O {[%clk 0:02:58]}  Qe7 {[%clk 0:02:45]} 13. Kb1 {[%clk 0:02:52]}  a5 {[%clk 0:02:36]} 14. h3 {[%clk 0:02:45]}  Nh6 {[%clk 0:02:36]} 15. Qd2 {[%clk 0:02:41]}  a4 {[%clk 0:02:34]} 16. Nd5 {[%clk 0:02:41]}  Qf7 {[%clk 0:02:23]} 17. Bxf6 {[%clk 0:02:35]}  Bxf6 {[%clk 0:02:22]} 18. Qxh6 {[%clk 0:02:30]}  Bg7 {[%clk 0:02:22]} 19. Qe3 {[%clk 0:02:22]}  a3 {[%clk 0:02:20]} 20. b3 {[%clk 0:02:17]}  Nd4 {[%clk 0:02:20]} 21. Rhf1 {[%clk 0:02:10]}  h6 {[%clk 0:01:59]} 22. Qd3 {[%clk 0:02:06]}  Nxe2 {[%clk 0:01:54]} 23. Qxe2 {[%clk 0:02:04]}  Bxh3 {[%clk 0:01:38]} 24. gxh3 {[%clk 0:01:58]}  Qxf3 {[%clk 0:01:38]} 25. Qxf3 {[%clk 0:01:57]}  Rxf3 {[%clk 0:01:39]} 26. Nxc7 {[%clk 0:01:58]}  Raf8 {[%clk 0:01:39]} 27. Rd2 {[%clk 0:01:42]}  Rxh3 {[%clk 0:01:38]} 28. Ne6 {[%clk 0:01:42]}  Rf7 {[%clk 0:01:38]} 29. c5 {[%clk 0:01:24]}  g5 {[%clk 0:01:34]} 30. b4 {[%clk 0:01:20]}  g4 {[%clk 0:01:35]} 31. Rg1 {[%clk 0:01:18]}  Rh4 {[%clk 0:00:19]} 32. b5 {[%clk 0:01:13]}  g3 {[%clk 0:00:20]} 33. Rxg3 {[%clk 0:01:09]}  Rxe4 {[%clk 0:00:19]} 34. c6 {[%clk 0:00:51]}  bxc6 {[%clk 0:00:19]} 35. bxc6 {[%clk 0:00:50]}  Rc4 {[%clk 0:00:15]} 36. Rc2 {[%clk 0:00:31]}  Rxc2 {[%clk 0:00:13]} 37. Kxc2 {[%clk 0:00:32]}  Rxf2+ {[%clk 0:00:13]} 38. Kb3 {[%clk 0:00:33]}  Rb2+ {[%clk 0:00:01]} 39. Kc4 {[%clk 0:00:19]}  Rc2+ {[%clk 0:00:02]} 40. Rc3 {[%clk 0:00:17]}  Rxc3+ {[%clk 0:00:02]} 41. Kxc3 {[%clk 0:00:17]}  e4+ {[%clk 0:00:03]} 42. Kc4 {[%clk 0:00:15]}  Be5 {[%clk 0:00:03]} 43. c7 {[%clk 0:00:13]}  Bxc7 {[%clk 0:00:03]} 44. Nxc7 {[%clk 0:00:13]}  Kg7 {[%clk 0:00:03]} 45. Kd4 {[%clk 0:00:13]}  Kf6 {[%clk 0:00:03]} 46. Kxe4 {[%clk 0:00:13]}  h5 {[%clk 0:00:02]} 47. Nb5 {[%clk 0:00:13]}  h4 {[%clk 0:00:02]} 48. Nxa3 {[%clk 0:00:13]}  h3 {[%clk 0:00:03]} 49. Kf3 {[%clk 0:00:13]}  Ke5 {[%clk 0:00:04]} 50. Kg3 {[%clk 0:00:13]}  Kd4 {[%clk 0:00:03]} 51. Nb1 {[%clk 0:00:13]} 1-0


[Site "https://www.chess.com"]

[Event "Titled Tuesday Blitz June 21 Early 2022"]
[White "Zhigalko, Sergei"]
[Black "Wagner, Dennis"]
[WhiteFideId "13502956"]
[BlackFideId "24650684"]
[WhiteElo "2662"]
[BlackElo "2355"]
[Result "1-0"]
[Round "08"]
[TimeControl "180+1"]
[Date "2022.06.21"]
[WhiteClock "0:00:49"]
[BlackClock "0:00:01"]

1. e4 {[%clk 0:03:00]}  Nf6 {[%clk 0:02:52]} 2. e5 {[%clk 0:03:01]}  Nd5 {[%clk 0:02:52]} 3. d4 {[%clk 0:03:02]}  d6 {[%clk 0:02:52]} 4. Nf3 {[%clk 0:03:02]}  g6 {[%clk 0:02:51]} 5. Bc4 {[%clk 0:03:03]}  c6 {[%clk 0:02:50]} 6. O-O {[%clk 0:03:01]}  dxe5 {[%clk 0:02:48]} 7. Nxe5 {[%clk 0:03:01]}  Bg7 {[%clk 0:02:48]} 8. Re1 {[%clk 0:03:01]}  O-O {[%clk 0:02:48]} 9. Bb3 {[%clk 0:02:52]}  Nd7 {[%clk 0:02:45]} 10. Nf3 {[%clk 0:02:52]}  N7f6 {[%clk 0:02:32]} 11. c4 {[%clk 0:02:44]}  Nb6 {[%clk 0:02:32]} 12. h3 {[%clk 0:02:42]}  a5 {[%clk 0:02:32]} 13. Nc3 {[%clk 0:02:42]}  Bf5 {[%clk 0:02:24]} 14. Bf4 {[%clk 0:02:34]}  Re8 {[%clk 0:01:58]} 15. a3 {[%clk 0:02:27]}  Qc8 {[%clk 0:01:41]} 16. Qe2 {[%clk 0:02:19]}  a4 {[%clk 0:01:40]} 17. Ba2 {[%clk 0:02:19]}  h6 {[%clk 0:01:29]} 18. Rad1 {[%clk 0:02:16]}  Be6 {[%clk 0:01:21]} 19. Ne5 {[%clk 0:02:12]}  g5 {[%clk 0:01:09]} 20. Bh2 {[%clk 0:02:00]}  Nfd7 {[%clk 0:01:09]} 21. Nf3 {[%clk 0:01:50]}  Ra5 {[%clk 0:01:02]} 22. h4 {[%clk 0:01:34]}  Bg4 {[%clk 0:00:53]} 23. c5 {[%clk 0:01:31]}  Nd5 {[%clk 0:00:25]} 24. hxg5 {[%clk 0:01:31]}  hxg5 {[%clk 0:00:24]} 25. Bxd5 {[%clk 0:01:15]}  cxd5 {[%clk 0:00:22]} 26. Nxd5 {[%clk 0:01:16]}  e6 {[%clk 0:00:23]} 27. Ne3 {[%clk 0:01:16]}  Bxf3 {[%clk 0:00:19]} 28. Qxf3 {[%clk 0:01:17]}  Rb5 {[%clk 0:00:16]} 29. Nc4 {[%clk 0:01:17]}  Rb3 {[%clk 0:00:13]} 30. Qh5 {[%clk 0:01:08]}  Qd8 {[%clk 0:00:12]} 31. Nd6 {[%clk 0:01:08]}  Rf8 {[%clk 0:00:12]} 32. Be5 {[%clk 0:01:01]}  Rxb2 {[%clk 0:00:06]} 33. Rd3 {[%clk 0:00:52]}  f6 {[%clk 0:00:03]} 34. Rh3 {[%clk 0:00:50]}  Re8 {[%clk 0:00:01]} 35. Qf7# {[%clk 0:00:49]} 1-0


[Site "https://www.chess.com"]

[Event "Titled Tuesday Blitz June 21 Early 2022"]
[White "Arabidze, Meri"]
[Black "Papasimakopoulos, Alexandros"]
[WhiteFideId "13604040"]
[BlackFideId "4244125"]
[WhiteElo "2335"]
[BlackElo "2340"]
[Result "0-1"]
[Round "09"]
[TimeControl "180+1"]
[Date "2022.06.21"]
[WhiteClock "0:00:01"]
[BlackClock "0:01:11"]

1. Nf3 {[%clk 0:02:55]}  f5 {[%clk 0:02:59]} 2. d3 {[%clk 0:02:52]}  d6 {[%clk 0:02:58]} 3. e4 {[%clk 0:02:52]}  g6 {[%clk 0:02:58]} 4. exf5 {[%clk 0:02:51]}  Bxf5 {[%clk 0:02:59]} 5. d4 {[%clk 0:02:51]}  Bg7 {[%clk 0:02:58]} 6. Bd3 {[%clk 0:02:51]}  Qd7 {[%clk 0:02:58]} 7. O-O {[%clk 0:02:43]}  Nf6 {[%clk 0:02:58]} 8. Re1 {[%clk 0:02:41]}  Nc6 {[%clk 0:02:59]} 9. c3 {[%clk 0:02:33]}  O-O-O {[%clk 0:02:48]} 10. b4 {[%clk 0:02:27]}  e5 {[%clk 0:02:31]} 11. b5 {[%clk 0:01:55]}  e4 {[%clk 0:02:30]} 12. bxc6 {[%clk 0:01:40]}  Qxc6 {[%clk 0:02:31]} 13. Be2 {[%clk 0:01:40]}  exf3 {[%clk 0:02:30]} 14. Bxf3 {[%clk 0:01:41]}  d5 {[%clk 0:02:24]} 15. Bf4 {[%clk 0:01:16]}  Ne4 {[%clk 0:02:20]} 16. Qb3 {[%clk 0:01:15]}  Rdf8 {[%clk 0:02:04]} 17. Nd2 {[%clk 0:01:03]}  Qxc3 {[%clk 0:01:53]} 18. Qxc3 {[%clk 0:00:54]}  Nxc3 {[%clk 0:01:53]} 19. Re7 {[%clk 0:00:54]}  Bxd4 {[%clk 0:01:49]} 20. Rxc7+ {[%clk 0:00:54]}  Kd8 {[%clk 0:01:50]} 21. Rxb7 {[%clk 0:00:46]}  Ne2+ {[%clk 0:01:41]} 22. Bxe2 {[%clk 0:00:44]}  Bxa1 {[%clk 0:01:41]} 23. Bb5 {[%clk 0:00:29]}  Bc8 {[%clk 0:01:40]} 24. Bc7+ {[%clk 0:00:21]}  Ke7 {[%clk 0:01:40]} 25. Rxa7 {[%clk 0:00:21]}  Kf6 {[%clk 0:01:34]} 26. h4 {[%clk 0:00:19]}  Be5 {[%clk 0:01:32]} 27. Bxe5+ {[%clk 0:00:13]}  Kxe5 {[%clk 0:01:33]} 28. Nf3+ {[%clk 0:00:14]}  Kd6 {[%clk 0:01:28]} 29. a4 {[%clk 0:00:15]}  Bg4 {[%clk 0:01:26]} 30. Ng5 {[%clk 0:00:13]}  Kc5 {[%clk 0:01:22]} 31. f3 {[%clk 0:00:11]}  Bc8 {[%clk 0:01:22]} 32. Nxh7 {[%clk 0:00:04]}  Rd8 {[%clk 0:01:19]} 33. Re7 {[%clk 0:00:04]}  d4 {[%clk 0:01:18]} 34. Nf6 {[%clk 0:00:04]}  d3 {[%clk 0:01:17]} 35. Ne4+ {[%clk 0:00:04]}  Kb4 {[%clk 0:01:16]} 36. Nd2 {[%clk 0:00:02]}  Kc3 {[%clk 0:01:17]} 37. Ne4+ {[%clk 0:00:03]}  Kb2 {[%clk 0:01:17]} 38. Nd2 {[%clk 0:00:03]}  Kc2 {[%clk 0:01:17]} 39. Ne4 {[%clk 0:00:01]}  d2 {[%clk 0:01:17]} 40. Nxd2 {[%clk 0:00:02]}  Kxd2 {[%clk 0:01:17]} 41. Rc7 {[%clk 0:00:02]}  Rxh4 {[%clk 0:01:16]} 42. Rc5 {[%clk 0:00:02]}  Rhd4 {[%clk 0:01:14]} 43. Rg5 {[%clk 0:00:02]}  Bd7 {[%clk 0:01:14]} 44. Rxg6 {[%clk 0:00:02]}  Bxb5 {[%clk 0:01:14]} 45. axb5 {[%clk 0:00:02]}  Rb4 {[%clk 0:01:14]} 46. b6 {[%clk 0:00:02]}  Rb8 {[%clk 0:01:14]} 47. Rd6+ {[%clk 0:00:02]}  Ke3 {[%clk 0:01:14]} 48. Re6+ {[%clk 0:00:03]}  Kf4 {[%clk 0:01:14]} 49. Rg6 {[%clk 0:00:03]}  Kf5 {[%clk 0:01:14]} 50. Rg7 {[%clk 0:00:03]}  R4xb6 {[%clk 0:01:15]} 51. Kf2 {[%clk 0:00:03]}  Rg6 {[%clk 0:01:12]} 52. Rf7+ {[%clk 0:00:03]}  Ke6 {[%clk 0:01:12]} 53. Rc7 {[%clk 0:00:01]}  Rb2+ {[%clk 0:01:11]} 0-1


[Site "https://www.chess.com"]

[Event "Titled Tuesday Blitz June 21 Early 2022"]
[White "Bilych, Olexiy"]
[Black "Sukandar, Irine Kharisma"]
[WhiteFideId "14156504"]
[BlackFideId "7101937"]
[WhiteElo "2189"]
[BlackElo "2293"]
[Result "1-0"]
[Round "09"]
[TimeControl "180+1"]
[Date "2022.06.21"]
[WhiteClock "0:00:34"]
[BlackClock "0:00:23"]

1. e4 {[%clk 0:03:00]}  d5 {[%clk 0:02:59]} 2. exd5 {[%clk 0:02:59]}  Qxd5 {[%clk 0:02:59]} 3. Nc3 {[%clk 0:02:59]}  Qa5 {[%clk 0:02:59]} 4. d4 {[%clk 0:02:59]}  Nf6 {[%clk 0:02:57]} 5. Nf3 {[%clk 0:02:59]}  Bf5 {[%clk 0:02:57]} 6. Bd2 {[%clk 0:02:58]}  c6 {[%clk 0:02:56]} 7. Ne4 {[%clk 0:02:44]}  Qc7 {[%clk 0:02:53]} 8. Nxf6+ {[%clk 0:02:44]}  gxf6 {[%clk 0:02:50]} 9. g3 {[%clk 0:02:37]}  Nd7 {[%clk 0:02:49]} 10. Bg2 {[%clk 0:02:37]}  O-O-O {[%clk 0:02:48]} 11. O-O {[%clk 0:02:37]}  h5 {[%clk 0:02:40]} 12. Re1 {[%clk 0:02:31]}  e5 {[%clk 0:02:30]} 13. Bc3 {[%clk 0:01:57]}  Bg4 {[%clk 0:02:14]} 14. h3 {[%clk 0:01:53]}  Be6 {[%clk 0:02:14]} 15. Qe2 {[%clk 0:01:47]}  Bg7 {[%clk 0:01:56]} 16. dxe5 {[%clk 0:01:44]}  fxe5 {[%clk 0:01:56]} 17. Nxe5 {[%clk 0:01:43]}  Nxe5 {[%clk 0:01:56]} 18. Bxe5 {[%clk 0:01:44]}  Bxe5 {[%clk 0:01:56]} 19. Qxe5 {[%clk 0:01:45]}  Qxe5 {[%clk 0:01:55]} 20. Rxe5 {[%clk 0:01:46]}  Rd2 {[%clk 0:01:56]} 21. Rc1 {[%clk 0:01:35]}  Kc7 {[%clk 0:01:48]} 22. h4 {[%clk 0:01:25]}  b6 {[%clk 0:01:43]} 23. Bf3 {[%clk 0:01:24]}  Rh6 {[%clk 0:01:35]} 24. Bxh5 {[%clk 0:01:11]}  Kd6 {[%clk 0:01:23]} 25. Re2 {[%clk 0:01:10]}  Rd4 {[%clk 0:01:09]} 26. Bf3 {[%clk 0:01:08]}  a5 {[%clk 0:01:01]} 27. Kg2 {[%clk 0:01:05]}  Bxa2 {[%clk 0:00:58]} 28. b3 {[%clk 0:00:55]}  a4 {[%clk 0:00:58]} 29. Ra1 {[%clk 0:00:50]}  axb3 {[%clk 0:00:58]} 30. cxb3 {[%clk 0:00:51]}  Bxb3 {[%clk 0:00:57]} 31. Rb2 {[%clk 0:00:51]}  Bd5 {[%clk 0:00:39]} 32. Bxd5 {[%clk 0:00:47]}  Rxd5 {[%clk 0:00:39]} 33. Rxb6 {[%clk 0:00:47]}  Rd2 {[%clk 0:00:38]} 34. Rxc6+ {[%clk 0:00:46]}  Kxc6 {[%clk 0:00:38]} 35. Ra6+ {[%clk 0:00:47]}  Kd5 {[%clk 0:00:38]} 36. Rxh6 {[%clk 0:00:48]}  Ke5 {[%clk 0:00:38]} 37. Ra6 {[%clk 0:00:47]}  Kf5 {[%clk 0:00:38]} 38. Ra5+ {[%clk 0:00:45]}  Kg6 {[%clk 0:00:38]} 39. Kf3 {[%clk 0:00:44]}  Rd3+ {[%clk 0:00:38]} 40. Kg4 {[%clk 0:00:43]}  Rd4+ {[%clk 0:00:38]} 41. f4 {[%clk 0:00:44]}  Rb4 {[%clk 0:00:38]} 42. h5+ {[%clk 0:00:44]}  Kh6 {[%clk 0:00:38]} 43. Ra6+ {[%clk 0:00:44]}  Kh7 {[%clk 0:00:38]} 44. Kg5 {[%clk 0:00:41]}  Kg7 {[%clk 0:00:37]} 45. h6+ {[%clk 0:00:41]}  Kh7 {[%clk 0:00:37]} 46. g4 {[%clk 0:00:41]}  Rb7 {[%clk 0:00:36]} 47. f5 {[%clk 0:00:41]}  Rd7 {[%clk 0:00:35]} 48. Rf6 {[%clk 0:00:37]}  Kg8 {[%clk 0:00:34]} 49. Kh5 {[%clk 0:00:36]}  Rd1 {[%clk 0:00:34]} 50. h7+ {[%clk 0:00:35]}  Kg7 {[%clk 0:00:32]} 51. Rxf7+ {[%clk 0:00:35]}  Kh8 {[%clk 0:00:32]} 52. Rf6 {[%clk 0:00:33]}  Rh1+ {[%clk 0:00:31]} 53. Kg5 {[%clk 0:00:33]}  Kxh7 {[%clk 0:00:31]} 54. Ra6 {[%clk 0:00:34]}  Rb1 {[%clk 0:00:25]} 55. Ra7+ {[%clk 0:00:34]}  Kg8 {[%clk 0:00:25]} 56. Kg6 {[%clk 0:00:34]}  Rb8 {[%clk 0:00:24]} 57. f6 {[%clk 0:00:33]}  Rc8 {[%clk 0:00:22]} 58. Rg7+ {[%clk 0:00:32]}  Kh8 {[%clk 0:00:22]} 59. Rh7+ {[%clk 0:00:32]}  Kg8 {[%clk 0:00:22]} 60. f7+ {[%clk 0:00:33]}  Kf8 {[%clk 0:00:22]} 61. Rh8+ {[%clk 0:00:33]}  Ke7 {[%clk 0:00:23]} 62. Rxc8 {[%clk 0:00:34]} 1-0


[Site "https://www.chess.com"]

[Event "Titled Tuesday Blitz June 21 Early 2022"]
[White "Bluebaum, Matthias"]
[Black "Jobava, Baadur"]
[WhiteFideId "24651516"]
[BlackFideId "13601520"]
[WhiteElo "2556"]
[BlackElo "2617"]
[Result "1/2-1/2"]
[Round "09"]
[TimeControl "180+1"]
[Date "2022.06.21"]
[WhiteClock "0:00:13"]
[BlackClock "0:00:21"]

1. d4 {[%clk 0:03:00]}  d5 {[%clk 0:02:51]} 2. c4 {[%clk 0:03:01]}  dxc4 {[%clk 0:02:51]} 3. e4 {[%clk 0:03:01]}  Nf6 {[%clk 0:02:51]} 4. e5 {[%clk 0:03:01]}  Nd5 {[%clk 0:02:52]} 5. Bxc4 {[%clk 0:03:02]}  Bf5 {[%clk 0:02:52]} 6. Ne2 {[%clk 0:02:46]}  e6 {[%clk 0:02:52]} 7. O-O {[%clk 0:02:46]}  Be7 {[%clk 0:02:50]} 8. Nbc3 {[%clk 0:02:46]}  O-O {[%clk 0:02:47]} 9. Ng3 {[%clk 0:02:45]}  Bg6 {[%clk 0:02:48]} 10. Bxd5 {[%clk 0:02:33]}  exd5 {[%clk 0:02:49]} 11. f4 {[%clk 0:02:34]}  f5 {[%clk 0:02:43]} 12. Qb3 {[%clk 0:02:34]}  Nc6 {[%clk 0:02:42]} 13. Qxd5+ {[%clk 0:02:24]}  Bf7 {[%clk 0:02:26]} 14. Qxd8 {[%clk 0:02:02]}  Raxd8 {[%clk 0:02:27]} 15. Nxf5 {[%clk 0:02:01]}  Bb4 {[%clk 0:02:27]} 16. a3 {[%clk 0:01:46]}  Bc4 {[%clk 0:02:20]} 17. axb4 {[%clk 0:01:26]}  Bxf1 {[%clk 0:02:20]} 18. d5 {[%clk 0:01:22]}  Nxb4 {[%clk 0:02:13]} 19. Nd4 {[%clk 0:00:47]}  Bc4 {[%clk 0:01:38]} 20. Ne6 {[%clk 0:00:46]}  Nxd5 {[%clk 0:01:35]} 21. Nxf8 {[%clk 0:00:37]}  Nxc3 {[%clk 0:01:33]} 22. bxc3 {[%clk 0:00:38]}  Rd1+ {[%clk 0:01:33]} 23. Kf2 {[%clk 0:00:38]}  Rf1+ {[%clk 0:01:20]} 24. Ke3 {[%clk 0:00:31]}  Kxf8 {[%clk 0:01:21]} 25. Kd4 {[%clk 0:00:30]}  b5 {[%clk 0:01:06]} 26. g4 {[%clk 0:00:22]}  Ke8 {[%clk 0:01:00]} 27. f5 {[%clk 0:00:21]}  h5 {[%clk 0:00:51]} 28. h3 {[%clk 0:00:21]}  hxg4 {[%clk 0:00:46]} 29. hxg4 {[%clk 0:00:22]}  Be2 {[%clk 0:00:47]} 30. Bb2 {[%clk 0:00:15]}  Rxa1 {[%clk 0:00:43]} 31. Bxa1 {[%clk 0:00:16]}  Bxg4 {[%clk 0:00:44]} 32. f6 {[%clk 0:00:16]}  g5 {[%clk 0:00:40]} 33. c4 {[%clk 0:00:14]}  b4 {[%clk 0:00:39]} 34. Kc5 {[%clk 0:00:11]}  a5 {[%clk 0:00:36]} 35. Kb5 {[%clk 0:00:10]}  Be6 {[%clk 0:00:25]} 36. Kxa5 {[%clk 0:00:11]}  c5 {[%clk 0:00:26]} 37. Kb5 {[%clk 0:00:09]}  g4 {[%clk 0:00:27]} 38. Kxc5 {[%clk 0:00:10]}  b3 {[%clk 0:00:26]} 39. Kb4 {[%clk 0:00:10]}  g3 {[%clk 0:00:20]} 40. Kxb3 {[%clk 0:00:10]}  g2 {[%clk 0:00:20]} 41. Bd4 {[%clk 0:00:11]}  Kd7 {[%clk 0:00:20]} 42. Kb4 {[%clk 0:00:11]}  Kc6 {[%clk 0:00:20]} 43. Bg1 {[%clk 0:00:12]}  Bf7 {[%clk 0:00:21]} 44. Kc3 {[%clk 0:00:12]}  Be6 {[%clk 0:00:21]} 45. Kd4 {[%clk 0:00:13]}  Bf7 {[%clk 0:00:22]} 46. Ke4 {[%clk 0:00:13]}  Bxc4 {[%clk 0:00:21]} 47. Kf5 {[%clk 0:00:13]}  Kd7 {[%clk 0:00:22]} 48. Ke4 {[%clk 0:00:11]}  Ke6 {[%clk 0:00:21]} 49. Kf4 {[%clk 0:00:11]}  Bd5 {[%clk 0:00:20]} 50. Bh2 {[%clk 0:00:12]}  Bc6 {[%clk 0:00:20]} 51. Bg1 {[%clk 0:00:12]}  Bd5 {[%clk 0:00:20]} 52. Bh2 {[%clk 0:00:13]}  Bc6 {[%clk 0:00:21]} 53. Bg1 {[%clk 0:00:13]}  Bd5 {[%clk 0:00:21]} 1/2-1/2


[Site "https://www.chess.com"]

[Event "Titled Tuesday Blitz June 21 Early 2022"]
[White "Domingo Nunez, Ruben"]
[Black "Sapunov, Evgeny"]
[WhiteFideId "22245570"]
[BlackFideId "4126661"]
[WhiteElo "2376"]
[BlackElo "2470"]
[Result "0-1"]
[Round "09"]
[TimeControl "180+1"]
[Date "2022.06.21"]
[WhiteClock "0:01:18"]
[BlackClock "0:01:26"]

1. c4 {[%clk 0:02:56]}  Nf6 {[%clk 0:02:59]} 2. g3 {[%clk 0:02:54]}  g6 {[%clk 0:02:59]} 3. Bg2 {[%clk 0:02:55]}  Bg7 {[%clk 0:02:59]} 4. Nc3 {[%clk 0:02:56]}  O-O {[%clk 0:03:00]} 5. b3 {[%clk 0:02:56]}  d6 {[%clk 0:03:00]} 6. Bb2 {[%clk 0:02:56]}  e5 {[%clk 0:02:57]} 7. e3 {[%clk 0:02:56]}  Re8 {[%clk 0:02:58]} 8. Nge2 {[%clk 0:02:57]}  c6 {[%clk 0:02:55]} 9. O-O {[%clk 0:02:57]}  a5 {[%clk 0:02:55]} 10. d4 {[%clk 0:02:57]}  e4 {[%clk 0:02:53]} 11. d5 {[%clk 0:02:56]}  c5 {[%clk 0:02:50]} 12. Nb5 {[%clk 0:02:55]}  Bf5 {[%clk 0:02:40]} 13. a3 {[%clk 0:02:34]}  Na6 {[%clk 0:02:33]} 14. Qd2 {[%clk 0:02:30]}  b6 {[%clk 0:02:29]} 15. Nec3 {[%clk 0:02:15]}  Nc7 {[%clk 0:02:27]} 16. Nxc7 {[%clk 0:02:14]}  Qxc7 {[%clk 0:02:27]} 17. Nb5 {[%clk 0:02:15]}  Qd7 {[%clk 0:02:26]} 18. b4 {[%clk 0:02:15]}  a4 {[%clk 0:02:04]} 19. Bc3 {[%clk 0:02:07]}  Ng4 {[%clk 0:02:03]} 20. Bxg7 {[%clk 0:01:59]}  Kxg7 {[%clk 0:02:02]} 21. Qc3+ {[%clk 0:02:00]}  Kg8 {[%clk 0:02:00]} 22. bxc5 {[%clk 0:01:57]}  bxc5 {[%clk 0:01:57]} 23. Qc2 {[%clk 0:01:44]}  Ne5 {[%clk 0:01:47]} 24. Bxe4 {[%clk 0:01:43]}  Nf3+ {[%clk 0:01:46]} 25. Bxf3 {[%clk 0:01:37]}  Bxc2 {[%clk 0:01:45]} 26. Rac1 {[%clk 0:01:37]}  Bd3 {[%clk 0:01:41]} 27. Rfd1 {[%clk 0:01:37]}  Bxc4 {[%clk 0:01:40]} 28. Nxd6 {[%clk 0:01:35]}  Qxd6 {[%clk 0:01:40]} 29. Rxc4 {[%clk 0:01:36]}  Reb8 {[%clk 0:01:37]} 30. Rdc1 {[%clk 0:01:36]}  Ra5 {[%clk 0:01:35]} 31. e4 {[%clk 0:01:18]}  Rb3 {[%clk 0:01:33]} 32. Kg2 {[%clk 0:01:18]}  Rxa3 {[%clk 0:01:32]} 33. Re1 {[%clk 0:01:19]}  f6 {[%clk 0:01:32]} 34. e5 {[%clk 0:01:18]}  fxe5 {[%clk 0:01:31]} 35. Rce4 {[%clk 0:01:19]}  Rxf3 {[%clk 0:01:28]} 36. Kxf3 {[%clk 0:01:19]}  Qxd5 {[%clk 0:01:28]} 37. Kg4 {[%clk 0:01:19]}  c4 {[%clk 0:01:29]} 38. f3 {[%clk 0:01:18]}  Rc5 {[%clk 0:01:28]} 39. Ra1 {[%clk 0:01:18]}  c3 {[%clk 0:01:26]} 0-1


[Site "https://www.chess.com"]